fUSD/lending_fUSD_20250629
["ID","MTS","AMOUNT","RATE_DAILY","PERIOD"]
[368451348,1751182244132,-1300.72,0.00027617,3]
[368451349,1751182244142,-1231.97,0.00027617,3]
[368451350,1751182244152,-4027.43,0.00027617,3]
[368451351,1751182244161,-1699.97,0.00027617,3]
[368451353,1751182244176,-3154.44,0.00027617,3]
[368451365,1751182244276,-2249.68,0.00027617,3]
[368451367,1751182244286,-2816.41,0.00027617,3]
[368451369,1751182244295,-2391.75,0.00027617,3]
[368451371,1751182244303,-29872.53,0.00027617,3]
[368451373,1751182244312,-2458.27,0.00027618,3]
[368451375,1751182244322,-929.38,0.00027618,3]
[368451376,1751182244332,-3630.15,0.00027618,3]
[368451378,1751182244342,-2325.15,0.00027618,3]
[368451380,1751182244351,-16257.32,0.00027618,3]
[368451382,1751182244360,-7724.83,0.00027618,3]
[368451384,1751182244369,-2149.5,0.00027618,3]
[368451386,1751182244378,-5677.04,0.00027618,3]
[368451388,1751182244388,-2531.52,0.00027618,3]
[368451390,1751182244397,-6800.29,0.00027618,3]
[368451392,1751182244407,-3276.18,0.00027618,3]
[368451394,1751182244416,-3692.76,0.00027618,3]
[368451396,1751182244425,-14547.11,0.00027618,3]
[368451398,1751182244435,-4651.63,0.00027618,3]
[368451400,1751182244444,-5615.45,0.00027618,3]
[368451402,1751182244453,-490.0,0.00027618,3]
[368451404,1751182244462,-2445.2,0.00027618,3]
[368451406,1751182244471,-1449.77,0.00027618,3]
[368451408,1751182244480,-6377.64,0.00027618,3]
[368451410,1751182244489,-9534.23,0.00027618,3]
[368451412,1751182244498,-965.3,0.00027618,3]
[368451414,1751182244508,-5998.34,0.00027618,3]
[368451416,1751182244517,-2020.83,0.00027618,3]
[368451418,1751182244527,-3627.03,0.00027618,3]
[368451420,1751182244537,-3212.39,0.00027618,3]
[368451422,1751182244546,-1870.81,0.00027618,3]
[368451424,1751182244555,-3110.6,0.00027618,3]
[368451426,1751182244565,-2825.64,0.00027618,3]
[368451428,1751182244574,-3598.8,0.00027618,3]
[368451430,1751182244583,-168.0,0.00027637,2]
[368451432,1751182244592,-1032.24,0.00027671,3]
[368451434,1751182244601,-986.88,0.00027671,3]
[368451436,1751182244611,-2426.13,0.00027671,3]
[368451438,1751182244620,-2321.5,0.00027671,3]
[368451440,1751182244629,-540.05,0.00027671,3]
[368451442,1751182244638,-524.65,0.00027671,3]
[368451444,1751182244647,-2244.43,0.00027671,3]
[368451446,1751182244656,-2131.08,0.00027671,3]
[368451448,1751182244665,-490.0,0.00027671,3]
[368451450,1751182244674,-2868.24,0.00027671,3]
[368451452,1751182244683,-490.0,0.00027671,3]
[368451454,1751182244693,-552.44,0.00027671,3]
[368451456,1751182244702,-490.0,0.00027671,3]
[368451458,1751182244711,-2130.69,0.00027671,3]
[368451460,1751182244720,-656.57,0.00027671,3]
[368451462,1751182244729,-490.0,0.00027671,3]
[368451464,1751182244740,-2139.8,0.00027671,3]
[368451466,1751182244751,-1096.93,0.00027671,3]
[368451468,1751182244761,-490.0,0.00027671,2]
[368451470,1751182244770,-490.0,0.00027671,3]
[368451472,1751182244780,-490.0,0.00027671,3]
[368451474,1751182244790,-490.0,0.00027671,3]
[368451476,1751182244799,-490.0,0.00027671,3]
[368451478,1751182244808,-490.0,0.00027671,3]
[368451480,1751182244818,-777.88,0.00027671,3]
[368451482,1751182244828,-490.0,0.00027671,3]
[368451484,1751182244837,-490.0,0.00027671,3]
[368451486,1751182244846,-500.0,0.00027673,5]
[368451488,1751182244856,-500.0,0.00027673,5]
[368451490,1751182244865,-500.0,0.00027673,5]
[368451492,1751182244874,-500.0,0.00027673,5]
[368451494,1751182244883,-500.0,0.00027673,5]
[368451496,1751182244893,-964.76709245,0.00027692,2]
[368451498,1751182244902,-1200.0,0.000277,10]
[368451500,1751182244912,-178.42522448,0.00027713,2]
[368451502,1751182244921,-300.0,0.00027713,2]
[368451504,1751182244931,-500.0,0.00027713,2]
[368451506,1751182244940,-500.0,0.00027713,2]
[368451508,1751182244950,-500.0,0.00027713,2]
[368451510,1751182244959,-500.0,0.00027713,2]
[368451512,1751182244967,-500.0,0.00027713,2]
[368451514,1751182244977,-500.0,0.00027713,2]
[368451515,1751182244986,-500.0,0.00027713,2]
[368451517,1751182244996,-500.0,0.00027713,2]
[368451520,1751182245006,-500.0,0.00027713,2]
[368451521,1751182245016,-500.0,0.00027713,2]
[368451523,1751182245025,-500.0,0.00027713,2]
[368451525,1751182245035,-500.0,0.00027713,2]
[368451527,1751182245044,-500.0,0.00027713,2]
[368451529,1751182245054,-500.0,0.00027713,2]
[368451531,1751182245063,-382.05658395,0.00027717,2]
[368451533,1751182245073,-179.68966691,0.00027727,10]
[368451535,1751182245082,-500.0,0.00027727,3]
[368451537,1751182245091,-500.0,0.00027727,3]
[368451539,1751182245101,-202.92775587,0.00027728,17]
[368451541,1751182245111,-300.0,0.00027728,10]
[368451543,1751182245120,-490.0,0.00027728,3]
[368451545,1751182245129,-501.12,0.00027728,3]
[368451547,1751182245138,-769.92,0.00027728,3]
[368451549,1751182245148,-490.0,0.00027728,3]
[368451551,1751182245157,-490.0,0.00027728,3]
[368451553,1751182245169,-490.0,0.00027728,3]
[368451555,1751182245178,-898.79,0.00027728,3]
[368451557,1751182245187,-490.0,0.00027728,3]
[368451559,1751182245196,-802.69,0.00027728,3]
[368451561,1751182245206,-709.67,0.00027728,3]
[368451563,1751182245215,-490.0,0.00027728,3]
[368451565,1751182245225,-490.0,0.00027728,3]
[368451567,1751182245234,-490.0,0.00027728,3]
[368451569,1751182245245,-490.0,0.00027728,3]
[368451571,1751182245254,-557.87,0.00027728,3]
[368451573,1751182245264,-490.0,0.00027728,3]
[368451575,1751182245273,-490.0,0.00027728,3]
[368451577,1751182245283,-490.0,0.00027728,3]
[368451579,1751182245292,-912.98,0.00027728,3]
[368451581,1751182245301,-490.0,0.00027728,3]
[368451583,1751182245311,-490.0,0.00027728,3]
[368451585,1751182245320,-490.0,0.00027728,3]
[368451587,1751182245330,-490.0,0.00027728,3]
[368451589,1751182245339,-866.34,0.00027728,3]
[368451591,1751182245348,-600.24,0.00027728,3]
[368451592,1751182245356,-490.0,0.00027728,3]
[368451594,1751182245366,-490.0,0.00027728,3]
[368451597,1751182245376,-496.58996295,0.00027728,3]
[368451598,1751182245385,-490.0,0.00027728,3]
[368451600,1751182245394,-490.0,0.00027728,3]
[368451602,1751182245404,-500.23,0.00027728,3]
[368451604,1751182245413,-490.0,0.00027728,3]
[368451606,1751182245422,-1027.74,0.00027728,3]
[368451608,1751182245431,-490.0,0.00027728,3]
[368451610,1751182245440,-490.0,0.00027728,3]
[368451612,1751182245449,-490.0,0.00027728,3]
[368451614,1751182245458,-1039.95,0.00027728,3]
[368451616,1751182245468,-490.0,0.00027728,3]
[368451618,1751182245477,-490.0,0.00027728,3]
[368451620,1751182245486,-490.0,0.00027728,3]
[368451622,1751182245495,-490.0,0.00027728,3]
[368451624,1751182245505,-742.48,0.00027728,3]
[368451626,1751182245515,-490.0,0.00027728,3]
[368451628,1751182245524,-586.15,0.00027728,3]
[368451630,1751182245534,-490.0,0.00027728,3]
[368451632,1751182245543,-490.0,0.00027728,3]
[368451634,1751182245553,-490.0,0.00027728,3]
[368451636,1751182245562,-586.74,0.00027728,3]
[368451638,1751182245571,-493.53,0.00027728,3]
[368451640,1751182245580,-490.0,0.00027728,3]
[368451642,1751182245589,-1232.64,0.00027728,3]
[368451644,1751182245599,-490.0,0.00027728,3]
[368451646,1751182245608,-727.1,0.00027728,3]
[368451648,1751182245618,-490.0,0.00027728,3]
[368451650,1751182245627,-646.31,0.00027728,3]
[368451652,1751182245636,-490.0,0.00027728,3]
[368451654,1751182245646,-490.0,0.00027728,3]
[368451656,1751182245655,-490.0,0.00027728,3]
[368451658,1751182245664,-490.2,0.00027728,3]
[368451660,1751182245673,-490.0,0.00027728,3]
[368451662,1751182245683,-490.0,0.00027728,3]
[368451664,1751182245692,-490.0,0.00027728,3]
[368451666,1751182245702,-490.0,0.00027728,3]
[368451668,1751182245712,-490.0,0.00027728,3]
[368451670,1751182245722,-490.0,0.00027728,3]
[368451672,1751182245731,-503.22,0.00027728,3]
[368451674,1751182245740,-490.0,0.00027728,3]
[368451676,1751182245749,-490.0,0.00027728,3]
[368451678,1751182245759,-490.0,0.00027728,3]
[368451680,1751182245769,-966.34,0.00027728,3]
[368451682,1751182245779,-490.0,0.00027728,3]
[368451684,1751182245788,-1194.77,0.00027728,3]
[368451686,1751182245797,-490.0,0.00027728,3]
[368451688,1751182245807,-575.97,0.00027728,3]
[368451690,1751182245817,-490.0,0.00027728,3]
[368451692,1751182245826,-490.0,0.00027728,3]
[368451694,1751182245836,-490.0,0.00027728,3]
[368451696,1751182245846,-490.0,0.00027728,3]
[368451698,1751182245855,-490.0,0.00027728,3]
[368451700,1751182245865,-513.48157377,0.00027728,3]
[368451702,1751182245875,-490.0,0.00027728,3]
[368451704,1751182245886,-490.0,0.00027728,3]
[368451706,1751182245895,-490.0,0.00027728,3]
[368451708,1751182245904,-490.0,0.00027728,3]
[368451710,1751182245914,-490.0,0.00027728,3]
[368451712,1751182245923,-490.0,0.00027728,3]
[368451714,1751182245932,-490.0,0.00027728,3]
[368451716,1751182245941,-490.0,0.00027728,3]
[368451718,1751182245950,-490.0,0.00027728,3]
[368451720,1751182245959,-490.0,0.00027728,3]
[368451722,1751182245968,-526.13,0.00027728,3]
[368451724,1751182245977,-490.0,0.00027728,3]
[368451726,1751182245986,-490.0,0.00027728,3]
[368451728,1751182245996,-490.0,0.00027728,3]
[368451730,1751182246005,-490.0,0.00027728,3]
[368451732,1751182246015,-490.0,0.00027728,3]
[368451734,1751182246025,-490.0,0.00027728,3]
[368451736,1751182246034,-490.0,0.00027728,3]
[368451738,1751182246043,-698.09,0.00027728,3]
[368451740,1751182246053,-490.0,0.00027728,3]
[368451742,1751182246064,-1019.81,0.00027728,3]
[368451744,1751182246074,-490.0,0.00027728,3]
[368451746,1751182246082,-490.0,0.00027728,3]
[368451748,1751182246092,-490.0,0.00027728,3]
[368451750,1751182246101,-490.0,0.00027728,3]
[368451752,1751182246110,-490.0,0.00027728,3]
[368451754,1751182246120,-490.07,0.00027728,3]
[368451756,1751182246130,-490.0,0.00027728,3]
[368451758,1751182246139,-490.0,0.00027728,3]
[368451760,1751182246149,-490.0,0.00027728,3]
[368451762,1751182246158,-490.0,0.00027728,3]
[368451764,1751182246170,-490.0,0.00027728,3]
[368451766,1751182246179,-490.0,0.00027728,3]
[368451768,1751182246188,-490.0,0.00027728,3]
[368451770,1751182246197,-490.0,0.00027728,3]
[368451772,1751182246206,-490.0,0.00027728,3]
[368451774,1751182246216,-490.0,0.00027728,3]
[368451776,1751182246226,-490.0,0.00027728,3]
[368451778,1751182246235,-490.0,0.00027728,3]
[368451780,1751182246245,-490.0,0.00027728,3]
[368451782,1751182246254,-490.0,0.00027728,3]
[368451784,1751182246264,-524.08,0.00027728,3]
[368451786,1751182246273,-573.76,0.00027728,3]
[368451789,1751182246282,-490.0,0.00027728,3]
[368451792,1751182246291,-271.23986715,0.00027728,3]
[368451795,1751182246300,-490.0,0.00027728,3]
[368451798,1751182246310,-554.26,0.00027728,3]
[368451800,1751182246320,-490.0,0.00027728,3]
[368451803,1751182246329,-490.0,0.00027728,3]
[368451806,1751182246339,-1209.03,0.00027728,3]
[368451809,1751182246349,-490.0,0.00027728,3]
[368451812,1751182246358,-430.01165356,0.00027728,3]
[368451815,1751182246368,-490.0,0.00027728,3]
[368451818,1751182246377,-544.18,0.00027728,3]
[368451821,1751182246387,-490.0,0.00027728,3]
[368451825,1751182246396,-490.0,0.00027728,3]
[368451827,1751182246405,-942.07,0.00027728,3]
[368451830,1751182246415,-490.0,0.00027728,3]
[368451834,1751182246424,-1044.0,0.00027728,3]
[368451835,1751182246433,-591.82,0.00027728,3]
[368451837,1751182246442,-490.0,0.00027728,3]
[368451839,1751182246451,-490.0,0.00027728,3]
[368451842,1751182246460,-490.0,0.00027728,3]
[368451845,1751182246469,-490.0,0.00027728,3]
[368451848,1751182246478,-490.0,0.00027728,3]
[368451850,1751182246487,-490.0,0.00027728,3]
[368451852,1751182246496,-490.0,0.00027728,3]
[368451854,1751182246505,-602.3,0.00027728,3]
[368451856,1751182246514,-490.0,0.00027728,3]
[368451859,1751182246523,-1035.27,0.00027728,3]
[368451862,1751182246532,-490.0,0.00027728,3]
[368451865,1751182246542,-490.0,0.00027728,3]
[368451867,1751182246551,-736.8,0.00027728,3]
[368451869,1751182246560,-519.55,0.00027728,3]
[368451871,1751182246569,-221.87575256,0.00027728,3]
[368451873,1751182246578,-490.0,0.00027728,3]
[368451875,1751182246587,-490.0,0.00027728,3]
[368451877,1751182246595,-515.45,0.00027728,3]
[368451879,1751182246604,-490.0,0.00027728,3]
[368451880,1751182246613,-490.0,0.00027728,3]
[368451883,1751182246623,-716.28,0.00027728,3]
[368451884,1751182246633,-490.0,0.00027728,3]
[368451887,1751182246642,-490.0,0.00027728,3]
[368451889,1751182246651,-490.0,0.00027728,3]
[368451890,1751182246660,-505.44,0.00027728,3]
[368451892,1751182246670,-490.0,0.00027728,3]
[368451894,1751182246678,-490.0,0.00027728,3]
[368451896,1751182246687,-258.74733659,0.00027728,3]
[368451898,1751182246696,-490.0,0.00027728,3]
[368451900,1751182246706,-490.0,0.00027728,3]
[368451902,1751182246715,-490.0,0.00027728,3]
[368451904,1751182246726,-490.0,0.00027728,3]
[368451906,1751182246735,-490.0,0.00027728,3]
[368451908,1751182246744,-650.79,0.00027728,3]
[368451910,1751182246754,-490.0,0.00027728,3]
[368451912,1751182246763,-587.52,0.00027728,3]
[368451914,1751182246773,-490.0,0.00027728,3]
[368451916,1751182246783,-490.0,0.00027728,3]
[368451918,1751182246791,-490.0,0.00027728,3]
[368451920,1751182246800,-865.26,0.00027728,3]
[368451922,1751182246810,-490.0,0.00027728,3]
[368451924,1751182246819,-490.0,0.00027728,3]
[368451926,1751182246829,-490.0,0.00027728,3]
[368451929,1751182246838,-490.0,0.00027728,3]
[368451931,1751182246849,-670.56,0.00027728,3]
[368451933,1751182246859,-490.0,0.00027728,3]
[368451934,1751182246868,-670.95,0.00027728,3]
[368451936,1751182246877,-490.0,0.00027728,3]
[368451938,1751182246886,-490.0,0.00027728,3]
[368451940,1751182246895,-490.0,0.00027728,3]
[368451942,1751182246905,-490.0,0.00027728,3]
[368451944,1751182246915,-642.41,0.00027728,3]
[368451947,1751182246924,-523.7,0.00027728,3]
[368451949,1751182246934,-490.0,0.00027728,3]
[368451951,1751182246943,-627.99,0.00027728,3]
[368451952,1751182246952,-490.0,0.00027728,3]
[368451954,1751182246961,-490.0,0.00027728,3]
[368451956,1751182246970,-490.0,0.00027728,3]
[368451959,1751182246979,-490.0,0.00027728,3]
[368451962,1751182246989,-490.0,0.00027728,3]
[368451965,1751182246998,-607.19,0.00027728,3]
[368451967,1751182247007,-490.0,0.00027728,3]
[368451969,1751182247016,-490.0,0.00027728,3]
[368451971,1751182247026,-1648.68,0.00027728,3]
[368451973,1751182247038,-490.0,0.00027728,3]
[368451975,1751182247047,-490.0,0.00027728,3]
[368451977,1751182247057,-490.0,0.00027728,3]
[368451979,1751182247067,-500.0,0.00027728,2]
[368451981,1751182247076,-604.32,0.00027728,3]
[368451983,1751182247086,-490.0,0.00027728,3]
[368451985,1751182247095,-490.0,0.00027728,3]
[368451987,1751182247104,-490.0,0.00027728,3]
[368451989,1751182247113,-490.0,0.00027728,3]
[368451991,1751182247123,-490.0,0.00027728,3]
[368451993,1751182247132,-490.0,0.00027728,3]
[368451995,1751182247142,-590.12,0.00027728,3]
[368451997,1751182247152,-490.0,0.00027728,3]
[368451999,1751182247161,-490.0,0.00027728,3]
[368452001,1751182247175,-1206.53,0.00027728,3]
[368452003,1751182247184,-490.0,0.00027728,3]
[368452005,1751182247194,-490.0,0.00027728,3]
[368452007,1751182247203,-958.57,0.00027728,3]
[368452010,1751182247213,-490.0,0.00027728,3]
[368452011,1751182247222,-490.0,0.00027728,3]
[368452013,1751182247231,-490.0,0.00027728,3]
[368452015,1751182247241,-490.0,0.00027728,3]
[368452017,1751182247251,-490.0,0.00027728,3]
[368452019,1751182247261,-490.0,0.00027728,3]
[368452021,1751182247271,-490.0,0.00027728,3]
[368452023,1751182247280,-490.0,0.00027728,3]
[368452025,1751182247290,-490.0,0.00027728,3]
[368452027,1751182247299,-501.5752668,0.00027728,3]
[368452029,1751182247309,-490.0,0.00027728,3]
[368452031,1751182247319,-542.56,0.00027728,2]
[368452033,1751182247328,-490.0,0.00027728,3]
[368452035,1751182247338,-1449.54,0.00027728,3]
[368452037,1751182247348,-490.0,0.00027728,3]
[368452039,1751182247357,-490.0,0.00027728,3]
[368452041,1751182247367,-939.34,0.00027728,3]
[368452043,1751182247376,-490.0,0.00027728,3]
[368452045,1751182247386,-490.0,0.00027728,3]
[368452047,1751182247395,-1375.29,0.00027728,3]
[368452049,1751182247405,-540.72,0.00027728,3]
[368452051,1751182247415,-1541.71,0.00027728,3]
[368452053,1751182247424,-490.0,0.00027728,3]
[368452055,1751182247434,-983.84,0.00027728,3]
[368452057,1751182247443,-490.0,0.00027728,3]
[368452058,1751182247452,-2229.85,0.00027728,3]
[368452060,1751182247462,-490.0,0.00027728,3]
[368452062,1751182247471,-894.46,0.00027728,3]
[368452064,1751182247481,-490.0,0.00027728,3]
[368452066,1751182247491,-494.89589127,0.00027728,3]
[368452068,1751182247500,-490.0,0.00027728,3]
[368452070,1751182247510,-490.0,0.00027728,3]
[368452072,1751182247519,-490.0,0.00027728,3]
[368452074,1751182247529,-490.0,0.00027728,3]
[368452076,1751182247538,-490.0,0.00027728,3]
[368452077,1751182247548,-490.0,0.00027728,3]
[368452079,1751182247557,-490.0,0.00027728,3]
[368452081,1751182247566,-490.0,0.00027728,3]
[368452083,1751182247576,-702.8,0.00027728,3]
[368452085,1751182247585,-490.0,0.00027728,3]
[368452087,1751182247594,-490.0,0.00027728,3]
[368452089,1751182247603,-490.0,0.00027728,3]
[368452091,1751182247613,-1665.12,0.00027728,3]
[368452094,1751182247622,-495.44,0.00027728,3]
[368452095,1751182247632,-490.0,0.00027728,3]
[368452097,1751182247641,-490.0,0.00027728,3]
[368452099,1751182247651,-490.0,0.00027728,3]
[368452102,1751182247660,-931.32,0.00027728,3]
[368452103,1751182247670,-490.0,0.00027728,3]
[368452106,1751182247679,-490.0,0.00027728,3]
[368452108,1751182247689,-500.0,0.00027728,3]
[368452110,1751182247698,-490.0,0.00027728,3]
[368452111,1751182247708,-490.0,0.00027728,3]
[368452113,1751182247718,-490.0,0.00027728,3]
[368452115,1751182247727,-1071.27,0.00027728,3]
[368452117,1751182247737,-490.0,0.00027728,3]
[368452119,1751182247746,-4961.98,0.00027728,3]
[368452121,1751182247755,-490.0,0.00027728,3]
[368452123,1751182247764,-1624.35,0.00027728,3]
[368452125,1751182247773,-490.0,0.00027728,3]
[368452127,1751182247783,-490.0,0.00027728,3]
[368452129,1751182247792,-490.0,0.00027728,3]
[368452131,1751182247801,-490.0,0.00027728,3]
[368452133,1751182247811,-490.0,0.00027728,3]
[368452135,1751182247820,-490.0,0.00027728,3]
[368452137,1751182247830,-666.17,0.00027728,3]
[368452139,1751182247839,-500.0,0.00027728,3]
[368452141,1751182247848,-490.0,0.00027728,3]
[368452143,1751182247857,-490.0,0.00027728,3]
[368452145,1751182247867,-490.0,0.00027728,3]
[368452147,1751182247875,-490.0,0.00027728,3]
[368452149,1751182247885,-490.0,0.00027728,3]
[368452151,1751182247894,-5301.8,0.00027728,3]
[368452153,1751182247903,-1354.79,0.00027728,3]
[368452155,1751182247912,-787.97,0.00027728,3]
[368452157,1751182247922,-588.0,0.00027728,3]
[368452159,1751182247931,-490.0,0.00027728,3]
[368452161,1751182247940,-490.0,0.00027728,3]
[368452163,1751182247949,-490.0,0.00027728,3]
[368452165,1751182247958,-500.0,0.00027728,3]
[368452167,1751182247967,-490.0,0.00027728,3]
[368452169,1751182247977,-5764.48,0.00027728,3]
[368452171,1751182247986,-490.0,0.00027728,3]
[368452173,1751182247997,-503.50386462,0.00027728,3]
[368452175,1751182248006,-885.71,0.00027728,3]
[368452177,1751182248015,-490.0,0.00027728,3]
[368452179,1751182248024,-490.0,0.00027728,3]
[368452181,1751182248034,-419.48441909,0.00027728,3]
[368452183,1751182248043,-490.0,0.00027728,3]
[368452185,1751182248052,-490.0,0.00027728,3]
[368452187,1751182248062,-490.0,0.00027728,3]
[368452189,1751182248071,-4557.27,0.00027728,3]
[368452191,1751182248081,-490.0,0.00027728,3]
[368452193,1751182248091,-490.0,0.00027728,3]
[368452195,1751182248100,-490.0,0.00027728,3]
[368452197,1751182248110,-490.0,0.00027728,3]
[368452199,1751182248119,-490.0,0.00027728,3]
[368452201,1751182248129,-1080.13,0.00027728,3]
[368452203,1751182248139,-370.28582875,0.00027728,2]
[368452205,1751182248148,-266.00766116,0.00027728,2]
[368452207,1751182248158,-604.9020852,0.00027728,2]
[368452209,1751182248170,-500.0,0.00027728,2]
[368452212,1751182248181,-500.0,0.00027728,2]
[368452213,1751182248191,-500.0,0.00027728,2]
[368452216,1751182248200,-500.0,0.00027728,2]
[368452218,1751182248209,-500.0,0.00027728,2]
[368452220,1751182248220,-500.0,0.00027728,2]
[368452222,1751182248230,-150.0,0.00027728,2]
[368452224,1751182248240,-500.0,0.00027728,2]
[368452226,1751182248252,-330.53108324,0.00027729,3]
[368452228,1751182248262,-490.0,0.00027729,3]
[368452230,1751182248272,-473.83873179,0.00027729,3]
[368452232,1751182248282,-490.0,0.00027729,3]
[368452234,1751182248291,-490.0,0.00027729,3]
[368452249,1751182248429,-490.0,0.00027729,3]
[368452251,1751182248439,-515.41254454,0.00027729,3]
[368452253,1751182248449,-194.56065599,0.00027729,3]
[368452255,1751182248458,-496.89751502,0.00027729,3]
[368452257,1751182248468,-616.05971342,0.00027729,3]
[368452259,1751182248477,-490.0,0.00027729,3]
[368452261,1751182248487,-490.0,0.00027729,3]
[368452263,1751182248496,-490.0,0.00027729,3]
[368452265,1751182248506,-490.0,0.00027729,3]
[368452267,1751182248515,-490.0,0.00027729,3]
[368452269,1751182248526,-490.0,0.00027729,3]
[368452271,1751182248536,-494.58364764,0.00027729,3]
[368452273,1751182248546,-516.91432786,0.00027729,3]
[368452275,1751182248555,-490.0,0.00027729,3]
[368452277,1751182248565,-490.0,0.00027729,3]
[368452279,1751182248575,-371.93395468,0.00027729,3]
[368452281,1751182248584,-1244.31,0.00027729,3]
[368452283,1751182248594,-490.0,0.00027729,3]
[368452285,1751182248603,-490.0,0.00027729,3]
[368452287,1751182248613,-1158.84,0.00027729,3]
[368452289,1751182248622,-659.68,0.00027729,3]
[368452291,1751182248631,-490.0,0.00027729,3]
[368452293,1751182248641,-490.0,0.00027729,3]
[368452295,1751182248650,-490.0,0.00027729,3]
[368452297,1751182248660,-490.0,0.00027729,3]
[368452299,1751182248670,-490.0,0.00027729,3]
[368452301,1751182248679,-490.0,0.00027729,3]
[368452303,1751182248689,-608.07639784,0.00027729,3]
[368452305,1751182248698,-490.0,0.00027729,3]
[368452307,1751182248709,-1130.82,0.00027729,3]
[368452309,1751182248719,-490.0,0.00027729,3]
[368452311,1751182248728,-490.0,0.00027729,3]
[368452313,1751182248738,-490.0,0.00027729,3]
[368452315,1751182248747,-490.0,0.00027729,3]
[368452317,1751182248756,-490.0,0.00027729,3]
[368452319,1751182248765,-490.0,0.00027729,3]
[368452321,1751182248775,-697.13,0.00027729,3]
[368452323,1751182248785,-490.0,0.00027729,3]
[368452325,1751182248794,-231.76630273,0.00027729,3]
[368452327,1751182248803,-490.0,0.00027729,3]
[368452329,1751182248813,-526.53294224,0.00027729,3]
[368452331,1751182248823,-490.0,0.00027729,3]
[368452334,1751182248833,-625.30627842,0.00027729,3]
[368452335,1751182248843,-811.32,0.00027729,3]
[368452337,1751182248853,-324.79350013,0.00027729,3]
[368452339,1751182248862,-490.0,0.00027729,3]
[368452341,1751182248871,-946.2,0.00027729,3]
[368452343,1751182248881,-490.0,0.00027729,3]
[368452345,1751182248891,-500.0,0.00027729,3]
[368452347,1751182248900,-768.21,0.00027729,3]
[368452349,1751182248911,-490.0,0.00027729,3]
[368452351,1751182248920,-490.0,0.00027729,3]
[368452353,1751182248930,-770.99,0.00027729,3]
[368452356,1751182248939,-1173.92,0.00027729,3]
[368452358,1751182248949,-490.0,0.00027729,3]
[368452359,1751182248959,-490.0,0.00027729,3]
[368452362,1751182248969,-490.0,0.00027729,3]
[368452364,1751182248979,-490.0,0.00027729,3]
[368452366,1751182248989,-490.0,0.00027729,3]
[368452368,1751182248998,-490.0,0.00027729,3]
[368452370,1751182249008,-490.0,0.00027729,3]
[368452372,1751182249018,-490.0,0.00027729,3]
[368452374,1751182249028,-490.0,0.00027729,3]
[368452376,1751182249038,-490.0,0.00027729,3]
[368452377,1751182249047,-490.0,0.00027729,3]
[368452379,1751182249057,-490.0,0.00027729,3]
[368452382,1751182249067,-490.0,0.00027729,3]
[368452384,1751182249079,-490.0,0.00027729,3]
[368452386,1751182249089,-1781.0,0.00027729,3]